[Event "Titled Tuesday Blitz December 06 Late 2022"]
[White "Omelja, Artem"]
[Black "Guzman Moneo, Alberto"]
[WhiteFideId "14119846"]
[BlackFideId "2209616"]
[WhiteElo "2404"]
[BlackElo "2157"]
[Result "1-0"]
[Round "10"]
[TimeControl "180+1"]
[Date "2022.12.07"]
[WhiteClock "0:02:27"]
[BlackClock "0:00:02"]

1. e4 {[%clk 0:03:00]}  c5 {[%clk 0:00:25]} 2. Nf3 {[%clk 0:02:56]}  Nc6 {[%clk 0:00:24]} 3. Bb5 {[%clk 0:02:55]}  g6 {[%clk 0:00:24]} 4. O-O {[%clk 0:02:55]}  Bg7 {[%clk 0:00:24]} 5. Re1 {[%clk 0:02:55]}  Nf6 {[%clk 0:00:24]} 6. c3 {[%clk 0:02:55]}  O-O {[%clk 0:00:24]} 7. d4 {[%clk 0:02:55]}  d5 {[%clk 0:00:23]} 8. Bxc6 {[%clk 0:02:54]}  bxc6 {[%clk 0:00:23]} 9. e5 {[%clk 0:02:51]}  Ne4 {[%clk 0:00:23]} 10. Nbd2 {[%clk 0:02:52]}  Nxd2 {[%clk 0:00:21]} 11. Bxd2 {[%clk 0:02:53]}  cxd4 {[%clk 0:00:22]} 12. cxd4 {[%clk 0:02:54]}  Bg4 {[%clk 0:00:21]} 13. h3 {[%clk 0:02:53]}  Bxf3 {[%clk 0:00:21]} 14. Qxf3 {[%clk 0:02:54]}  Rb8 {[%clk 0:00:21]} 15. Bc3 {[%clk 0:02:52]}  e6 {[%clk 0:00:21]} 16. a3 {[%clk 0:02:50]}  Qc7 {[%clk 0:00:21]} 17. Bb4 {[%clk 0:02:50]}  Rfd8 {[%clk 0:00:16]} 18. Bd6 {[%clk 0:02:48]}  Rxd6 {[%clk 0:00:16]} 19. exd6 {[%clk 0:02:49]}  Qxd6 {[%clk 0:00:17]} 20. Qc3 {[%clk 0:02:48]}  Rc8 {[%clk 0:00:14]} 21. Rac1 {[%clk 0:02:47]}  h5 {[%clk 0:00:12]} 22. b4 {[%clk 0:02:44]}  Qf4 {[%clk 0:00:08]} 23. Red1 {[%clk 0:02:40]}  Bf8 {[%clk 0:00:06]} 24. Qg3 {[%clk 0:02:39]}  Qf6 {[%clk 0:00:05]} 25. Qe5 {[%clk 0:02:38]}  Qh4 {[%clk 0:00:05]} 26. b5 {[%clk 0:02:34]}  Bg7 {[%clk 0:00:04]} 27. Qe3 {[%clk 0:02:33]}  c5 {[%clk 0:00:03]} 28. Rxc5 {[%clk 0:02:31]}  Rxc5 {[%clk 0:00:03]} 29. dxc5 {[%clk 0:02:32]}  d4 {[%clk 0:00:03]} 30. Qg3 {[%clk 0:02:30]}  Qe4 {[%clk 0:00:02]} 31. c6 {[%clk 0:02:29]}  Qc2 {[%clk 0:00:02]} 32. Rf1 {[%clk 0:02:26]}  d3 {[%clk 0:00:02]} 33. Qb8+ {[%clk 0:02:26]}  Kh7 {[%clk 0:00:02]} 34. c7 {[%clk 0:02:27]} 1-0


[Site "https://www.chess.com"]

[Event "Titled Tuesday Blitz December 06 Late 2022"]
[White "Oro, Faustino"]
[Black "Rustemov, Alexander"]
[WhiteFideId "20000197"]
[BlackFideId "4119002"]
[WhiteElo "1984"]
[BlackElo "2783"]
[Result "0-1"]
[Round "10"]
[TimeControl "180+1"]
[Date "2022.12.06"]
[WhiteClock "0:00:15"]
[BlackClock "0:00:29"]

1. e4 {[%clk 0:03:00]}  e6 {[%clk 0:02:54]} 2. d4 {[%clk 0:03:00]}  d5 {[%clk 0:02:54]} 3. Nd2 {[%clk 0:03:01]}  dxe4 {[%clk 0:02:54]} 4. Nxe4 {[%clk 0:03:02]}  Bd7 {[%clk 0:02:54]} 5. Nf3 {[%clk 0:03:01]}  Bc6 {[%clk 0:02:55]} 6. Bd3 {[%clk 0:03:01]}  Nd7 {[%clk 0:02:55]} 7. O-O {[%clk 0:03:01]}  Ngf6 {[%clk 0:02:56]} 8. Qe2 {[%clk 0:03:01]}  Nxe4 {[%clk 0:02:49]} 9. Bxe4 {[%clk 0:03:01]}  Bxe4 {[%clk 0:02:49]} 10. Qxe4 {[%clk 0:03:02]}  c6 {[%clk 0:02:50]} 11. c3 {[%clk 0:02:57]}  Be7 {[%clk 0:02:48]} 12. Bf4 {[%clk 0:02:56]}  O-O {[%clk 0:02:48]} 13. Qe2 {[%clk 0:02:55]}  Qa5 {[%clk 0:02:46]} 14. h3 {[%clk 0:02:51]}  Rad8 {[%clk 0:02:44]} 15. Rfd1 {[%clk 0:02:43]}  Rfe8 {[%clk 0:02:43]} 16. Nd2 {[%clk 0:02:42]}  Qb5 {[%clk 0:02:35]} 17. Qxb5 {[%clk 0:02:34]}  cxb5 {[%clk 0:02:35]} 18. Ne4 {[%clk 0:02:27]}  Rc8 {[%clk 0:02:25]} 19. Rac1 {[%clk 0:02:26]}  Nb6 {[%clk 0:02:23]} 20. b3 {[%clk 0:02:17]}  Rc6 {[%clk 0:02:19]} 21. Rc2 {[%clk 0:01:59]}  Rec8 {[%clk 0:02:18]} 22. Rdc1 {[%clk 0:01:59]}  Ba3 {[%clk 0:02:13]} 23. Rd1 {[%clk 0:01:48]}  Nd5 {[%clk 0:02:12]} 24. Be5 {[%clk 0:01:13]}  f6 {[%clk 0:02:05]} 25. Bg3 {[%clk 0:01:11]}  f5 {[%clk 0:02:01]} 26. Ng5 {[%clk 0:01:05]}  h6 {[%clk 0:01:57]} 27. Nf3 {[%clk 0:01:04]}  f4 {[%clk 0:01:47]} 28. Bh2 {[%clk 0:01:00]}  Rxc3 {[%clk 0:01:45]} 29. Rxc3 {[%clk 0:01:00]}  Rxc3 {[%clk 0:01:44]} 30. Re1 {[%clk 0:01:00]}  Kf7 {[%clk 0:01:34]} 31. Ne5+ {[%clk 0:01:00]}  Kf6 {[%clk 0:01:28]} 32. Nd7+ {[%clk 0:00:59]}  Ke7 {[%clk 0:01:26]} 33. Ne5 {[%clk 0:00:59]}  g5 {[%clk 0:01:17]} 34. h4 {[%clk 0:00:54]}  Rc2 {[%clk 0:01:14]} 35. hxg5 {[%clk 0:00:54]}  hxg5 {[%clk 0:01:14]} 36. g3 {[%clk 0:00:46]}  Rxa2 {[%clk 0:01:13]} 37. gxf4 {[%clk 0:00:45]}  gxf4 {[%clk 0:01:13]} 38. Ng6+ {[%clk 0:00:45]}  Kd7 {[%clk 0:01:09]} 39. Bxf4 {[%clk 0:00:43]}  Bd6 {[%clk 0:00:55]} 40. Bxd6 {[%clk 0:00:35]}  Kxd6 {[%clk 0:00:55]} 41. Kg2 {[%clk 0:00:33]}  a5 {[%clk 0:00:53]} 42. Nf8 {[%clk 0:00:29]}  Nc7 {[%clk 0:00:50]} 43. Kf3 {[%clk 0:00:30]}  Ra3 {[%clk 0:00:45]} 44. Re3 {[%clk 0:00:29]}  a4 {[%clk 0:00:45]} 45. bxa4 {[%clk 0:00:29]}  Rxe3+ {[%clk 0:00:45]} 46. Kxe3 {[%clk 0:00:30]}  bxa4 {[%clk 0:00:46]} 47. Kd3 {[%clk 0:00:31]}  b5 {[%clk 0:00:44]} 48. Ng6 {[%clk 0:00:31]}  b4 {[%clk 0:00:36]} 49. Ne5 {[%clk 0:00:26]}  a3 {[%clk 0:00:34]} 50. Nc4+ {[%clk 0:00:24]}  Kc6 {[%clk 0:00:32]} 51. Kc2 {[%clk 0:00:18]}  Nb5 {[%clk 0:00:29]} 52. Kb3 {[%clk 0:00:15]}  Nxd4+ {[%clk 0:00:29]} 0-1


[Site "https://www.chess.com"]

[Event "Titled Tuesday Blitz December 06 Late 2022"]
[White "Poliakova, Varvara"]
[Black "Stoleriu, George"]
[WhiteFideId "13518313"]
[BlackFideId "1227505"]
[WhiteElo "2075"]
[BlackElo "2287"]
[Result "0-1"]
[Round "10"]
[TimeControl "180+1"]
[Date "2022.12.06"]
[WhiteClock "0:00:40"]
[BlackClock "0:00:16"]

1. e4 {[%clk 0:03:00]}  d5 {[%clk 0:03:00]} 2. exd5 {[%clk 0:02:58]}  c6 {[%clk 0:03:01]} 3. d4 {[%clk 0:02:58]}  cxd5 {[%clk 0:02:57]} 4. c3 {[%clk 0:02:57]}  Nc6 {[%clk 0:02:56]} 5. Bd3 {[%clk 0:02:58]}  Nf6 {[%clk 0:02:52]} 6. Nf3 {[%clk 0:02:58]}  Bg4 {[%clk 0:02:50]} 7. h3 {[%clk 0:02:57]}  Bh5 {[%clk 0:02:48]} 8. Nbd2 {[%clk 0:02:57]}  e6 {[%clk 0:02:47]} 9. Nf1 {[%clk 0:02:57]}  Bd6 {[%clk 0:02:46]} 10. Ng3 {[%clk 0:02:58]}  Bxg3 {[%clk 0:02:45]} 11. fxg3 {[%clk 0:02:58]}  O-O {[%clk 0:02:43]} 12. O-O {[%clk 0:02:58]}  Rc8 {[%clk 0:02:40]} 13. Bg5 {[%clk 0:02:57]}  h6 {[%clk 0:02:39]} 14. Bf4 {[%clk 0:02:57]}  Ne4 {[%clk 0:02:33]} 15. g4 {[%clk 0:02:55]}  Bg6 {[%clk 0:02:31]} 16. Ne5 {[%clk 0:02:47]}  Nxe5 {[%clk 0:02:15]} 17. Bxe5 {[%clk 0:02:48]}  Qb6 {[%clk 0:02:14]} 18. Qe2 {[%clk 0:02:45]}  f6 {[%clk 0:01:42]} 19. Bh2 {[%clk 0:02:42]}  e5 {[%clk 0:01:42]} 20. Bxe4 {[%clk 0:02:11]}  Bxe4 {[%clk 0:01:40]} 21. Rad1 {[%clk 0:02:08]}  Rfe8 {[%clk 0:01:26]} 22. Qf2 {[%clk 0:02:06]}  exd4 {[%clk 0:01:23]} 23. Rxd4 {[%clk 0:02:07]}  Rc4 {[%clk 0:01:10]} 24. Rfd1 {[%clk 0:01:56]}  Re7 {[%clk 0:01:00]} 25. Bf4 {[%clk 0:01:51]}  Kf7 {[%clk 0:00:54]} 26. Bc1 {[%clk 0:01:48]}  a6 {[%clk 0:00:46]} 27. h4 {[%clk 0:01:44]}  Qe6 {[%clk 0:00:40]} 28. g5 {[%clk 0:01:44]}  hxg5 {[%clk 0:00:39]} 29. hxg5 {[%clk 0:01:43]}  Qg4 {[%clk 0:00:39]} 30. gxf6 {[%clk 0:01:41]}  gxf6 {[%clk 0:00:40]} 31. Rf1 {[%clk 0:01:38]}  f5 {[%clk 0:00:40]} 32. Bf4 {[%clk 0:01:30]}  Rxd4 {[%clk 0:00:25]} 33. cxd4 {[%clk 0:01:31]}  Bd3 {[%clk 0:00:26]} 34. Rc1 {[%clk 0:01:17]}  Re2 {[%clk 0:00:25]} 35. Rc7+ {[%clk 0:01:16]}  Kg6 {[%clk 0:00:25]} 36. Qf3 {[%clk 0:01:15]}  Qxf3 {[%clk 0:00:25]} 37. gxf3 {[%clk 0:01:15]}  Rxb2 {[%clk 0:00:26]} 38. a4 {[%clk 0:01:10]}  Be2 {[%clk 0:00:25]} 39. Be5 {[%clk 0:01:05]}  Bxf3 {[%clk 0:00:22]} 40. Rg7+ {[%clk 0:01:06]}  Kh5 {[%clk 0:00:22]} 41. Bf4 {[%clk 0:01:02]}  Be4 {[%clk 0:00:18]} 42. a5 {[%clk 0:00:58]}  Kh4 {[%clk 0:00:18]} 43. Kf1 {[%clk 0:00:55]}  Kh3 {[%clk 0:00:18]} 44. Ke1 {[%clk 0:00:55]}  Rg2 {[%clk 0:00:17]} 45. Rxb7 {[%clk 0:00:52]}  Kg4 {[%clk 0:00:16]} 46. Bc7 {[%clk 0:00:51]}  Ra2 {[%clk 0:00:16]} 47. Rb6 {[%clk 0:00:50]}  Kf3 {[%clk 0:00:16]} 48. Rxa6 {[%clk 0:00:40]}  Ke3 {[%clk 0:00:16]} 0-1


[Site "https://www.chess.com"]

[Event "Titled Tuesday Blitz December 06 Late 2022"]
[White "Pultinevicius, Paulius"]
[Black "Quesada Perez, Yuniesky"]
[WhiteFideId "12809390"]
[BlackFideId "3504409"]
[WhiteElo "2486"]
[BlackElo "2600"]
[Result "1/2-1/2"]
[Round "10"]
[TimeControl "180+1"]
[Date "2022.12.06"]
[WhiteClock "0:00:02"]
[BlackClock "0:00:03"]

1. b3 {[%clk 0:03:00]}  d5 {[%clk 0:02:59]} 2. Bb2 {[%clk 0:03:00]}  Bf5 {[%clk 0:02:59]} 3. e3 {[%clk 0:02:58]}  e6 {[%clk 0:03:00]} 4. Ne2 {[%clk 0:02:58]}  Nf6 {[%clk 0:02:56]} 5. Ng3 {[%clk 0:02:58]}  Bg6 {[%clk 0:02:56]} 6. d4 {[%clk 0:02:58]}  c5 {[%clk 0:02:55]} 7. Bd3 {[%clk 0:02:51]}  Nc6 {[%clk 0:02:54]} 8. dxc5 {[%clk 0:02:44]}  Bxc5 {[%clk 0:02:53]} 9. O-O {[%clk 0:02:44]}  Rc8 {[%clk 0:02:34]} 10. Nd2 {[%clk 0:02:42]}  O-O {[%clk 0:02:29]} 11. Bxg6 {[%clk 0:02:40]}  hxg6 {[%clk 0:02:30]} 12. a3 {[%clk 0:02:38]}  a5 {[%clk 0:02:29]} 13. Qe2 {[%clk 0:02:34]}  e5 {[%clk 0:02:24]} 14. Nf3 {[%clk 0:02:30]}  Qe7 {[%clk 0:02:23]} 15. Rfd1 {[%clk 0:02:28]}  Rfd8 {[%clk 0:02:22]} 16. c4 {[%clk 0:02:12]}  dxc4 {[%clk 0:02:09]} 17. Qxc4 {[%clk 0:02:10]}  Rxd1+ {[%clk 0:02:02]} 18. Rxd1 {[%clk 0:02:10]}  Bxa3 {[%clk 0:01:27]} 19. Bxa3 {[%clk 0:02:01]}  Qxa3 {[%clk 0:01:24]} 20. Nxe5 {[%clk 0:02:02]}  Rc7 {[%clk 0:00:43]} 21. Nxg6 {[%clk 0:02:01]}  Qb4 {[%clk 0:00:27]} 22. Ne5 {[%clk 0:01:20]}  Qxc4 {[%clk 0:00:24]} 23. Nxc4 {[%clk 0:01:21]}  Rd7 {[%clk 0:00:23]} 24. Ra1 {[%clk 0:01:20]}  Rd5 {[%clk 0:00:23]} 25. Nf1 {[%clk 0:01:15]}  Nd7 {[%clk 0:00:22]} 26. e4 {[%clk 0:01:03]}  Rb5 {[%clk 0:00:19]} 27. Nfd2 {[%clk 0:01:02]}  Nc5 {[%clk 0:00:20]} 28. Ra3 {[%clk 0:01:02]}  Rb4 {[%clk 0:00:14]} 29. f3 {[%clk 0:00:48]}  b6 {[%clk 0:00:14]} 30. Kf1 {[%clk 0:00:46]}  Nd4 {[%clk 0:00:14]} 31. Nd6 {[%clk 0:00:28]}  Ncxb3 {[%clk 0:00:14]} 32. N2c4 {[%clk 0:00:26]}  a4 {[%clk 0:00:12]} 33. Kf2 {[%clk 0:00:26]}  b5 {[%clk 0:00:12]} 34. Ne5 {[%clk 0:00:27]}  Nc5 {[%clk 0:00:11]} 35. Ndxf7 {[%clk 0:00:21]}  Rb2+ {[%clk 0:00:11]} 36. Kg3 {[%clk 0:00:20]}  b4 {[%clk 0:00:11]} 37. Ra1 {[%clk 0:00:18]}  a3 {[%clk 0:00:11]} 38. Rd1 {[%clk 0:00:19]}  a2 {[%clk 0:00:11]} 39. Rxd4 {[%clk 0:00:19]}  Ne6 {[%clk 0:00:08]} 40. Rd6 {[%clk 0:00:20]}  a1=Q {[%clk 0:00:05]} 41. Rxe6 {[%clk 0:00:20]}  Qe1+ {[%clk 0:00:05]} 42. Kh3 {[%clk 0:00:20]}  g6 {[%clk 0:00:06]} 43. Rxg6+ {[%clk 0:00:19]}  Kf8 {[%clk 0:00:06]} 44. Nd6 {[%clk 0:00:14]}  Qd2 {[%clk 0:00:04]} 45. Nf5 {[%clk 0:00:13]}  Qf4 {[%clk 0:00:03]} 46. Nd7+ {[%clk 0:00:10]}  Kf7 {[%clk 0:00:03]} 47. Rf6+ {[%clk 0:00:09]}  Ke8 {[%clk 0:00:02]} 48. Ng7+ {[%clk 0:00:09]}  Kxd7 {[%clk 0:00:02]} 49. Rxf4 {[%clk 0:00:10]}  b3 {[%clk 0:00:03]} 50. Rf7+ {[%clk 0:00:10]}  Kc6 {[%clk 0:00:03]} 51. Nf5 {[%clk 0:00:11]}  Rd2 {[%clk 0:00:03]} 52. Rf8 {[%clk 0:00:10]}  Kc7 {[%clk 0:00:03]} 53. Rf7+ {[%clk 0:00:07]}  Kc6 {[%clk 0:00:03]} 54. Rf6+ {[%clk 0:00:06]}  Kc7 {[%clk 0:00:03]} 55. Ne7 {[%clk 0:00:02]}  b2 {[%clk 0:00:03]} 56. Nd5+ {[%clk 0:00:01]}  Rxd5 {[%clk 0:00:04]} 57. exd5 {[%clk 0:00:02]}  b1=Q {[%clk 0:00:04]} 58. Kg4 {[%clk 0:00:02]}  Qh7 {[%clk 0:00:04]} 59. Rf5 {[%clk 0:00:03]}  Qg7+ {[%clk 0:00:05]} 60. Kh3 {[%clk 0:00:03]}  Qg6 {[%clk 0:00:05]} 61. g4 {[%clk 0:00:03]}  Kd6 {[%clk 0:00:05]} 62. Kg3 {[%clk 0:00:04]}  Qh6 {[%clk 0:00:05]} 63. h4 {[%clk 0:00:05]}  Qc1 {[%clk 0:00:05]} 64. h5 {[%clk 0:00:05]}  Qg1+ {[%clk 0:00:05]} 65. Kf4 {[%clk 0:00:06]}  Qc1+ {[%clk 0:00:06]} 66. Kg3 {[%clk 0:00:06]}  Qg1+ {[%clk 0:00:06]} 67. Kh4 {[%clk 0:00:07]}  Qe1+ {[%clk 0:00:05]} 68. Kg5 {[%clk 0:00:07]}  Qe7+ {[%clk 0:00:05]} 69. Kg6 {[%clk 0:00:07]}  Qe8+ {[%clk 0:00:06]} 70. Kg7 {[%clk 0:00:07]}  Qe7+ {[%clk 0:00:06]} 71. Kh6 {[%clk 0:00:07]}  Qe8 {[%clk 0:00:04]} 72. Kg5 {[%clk 0:00:04]}  Qe7+ {[%clk 0:00:05]} 73. Kf4 {[%clk 0:00:03]}  Qe1 {[%clk 0:00:04]} 74. Kg5 {[%clk 0:00:02]}  Qe7+ {[%clk 0:00:03]} 1/2-1/2


[Site "https://www.chess.com"]

[Event "Titled Tuesday Blitz December 06 Late 2022"]
[White "Quinones Garcia, Santiago"]
[Black "Moral Garcia, Serafin"]
[WhiteFideId "4408497"]
[BlackFideId "2201925"]
[WhiteElo "2249"]
[BlackElo "2259"]
[Result "0-1"]
[Round "10"]
[TimeControl "180+1"]
[Date "2022.12.07"]
[WhiteClock "0:00:02"]
[BlackClock "0:00:13"]

1. d4 {[%clk 0:03:00]}  Nf6 {[%clk 0:02:59]} 2. c4 {[%clk 0:03:00]}  g6 {[%clk 0:02:59]} 3. Nc3 {[%clk 0:03:01]}  d5 {[%clk 0:02:59]} 4. cxd5 {[%clk 0:03:01]}  Nxd5 {[%clk 0:03:00]} 5. e4 {[%clk 0:03:01]}  Nxc3 {[%clk 0:03:00]} 6. bxc3 {[%clk 0:03:02]}  Bg7 {[%clk 0:03:01]} 7. Nf3 {[%clk 0:03:02]}  c5 {[%clk 0:03:00]} 8. Be3 {[%clk 0:03:03]}  Nc6 {[%clk 0:02:57]} 9. Rc1 {[%clk 0:03:02]}  Bg4 {[%clk 0:02:55]} 10. d5 {[%clk 0:02:57]}  Ne5 {[%clk 0:02:53]} 11. Bxc5 {[%clk 0:02:55]}  Bxf3 {[%clk 0:02:52]} 12. gxf3 {[%clk 0:02:55]}  O-O {[%clk 0:02:49]} 13. Bd4 {[%clk 0:02:52]}  Qa5 {[%clk 0:02:47]} 14. f4 {[%clk 0:02:50]}  Nf3+ {[%clk 0:02:43]} 15. Qxf3 {[%clk 0:02:48]}  Bxd4 {[%clk 0:02:43]} 16. Qd3 {[%clk 0:02:30]}  Bg7 {[%clk 0:02:39]} 17. Qd2 {[%clk 0:02:30]}  e6 {[%clk 0:02:32]} 18. c4 {[%clk 0:02:29]}  Qxd2+ {[%clk 0:02:28]} 19. Kxd2 {[%clk 0:02:29]}  Bh6 {[%clk 0:02:29]} 20. Ke3 {[%clk 0:02:17]}  e5 {[%clk 0:02:28]} 21. Rb1 {[%clk 0:02:14]}  Bxf4+ {[%clk 0:02:27]} 22. Kd3 {[%clk 0:02:13]}  b6 {[%clk 0:02:28]} 23. Bh3 {[%clk 0:02:12]}  Kg7 {[%clk 0:02:17]} 24. a4 {[%clk 0:02:11]}  Rab8 {[%clk 0:02:16]} 25. Rb5 {[%clk 0:02:04]}  Kf6 {[%clk 0:01:57]} 26. Rhb1 {[%clk 0:01:58]}  Bxh2 {[%clk 0:01:56]} 27. a5 {[%clk 0:01:59]}  h5 {[%clk 0:01:39]} 28. axb6 {[%clk 0:01:58]}  axb6 {[%clk 0:01:38]} 29. Rxb6+ {[%clk 0:01:59]}  Rxb6 {[%clk 0:01:38]} 30. Rxb6+ {[%clk 0:02:00]}  Kg7 {[%clk 0:01:38]} 31. c5 {[%clk 0:01:58]}  f5 {[%clk 0:01:38]} 32. c6 {[%clk 0:01:53]}  fxe4+ {[%clk 0:01:38]} 33. Ke2 {[%clk 0:01:52]}  e3 {[%clk 0:01:36]} 34. fxe3 {[%clk 0:01:52]}  e4 {[%clk 0:01:36]} 35. Rb7+ {[%clk 0:01:50]}  Rf7 {[%clk 0:01:33]} 36. Rd7 {[%clk 0:01:48]}  Rxd7 {[%clk 0:01:31]} 37. cxd7 {[%clk 0:01:25]}  Bc7 {[%clk 0:01:30]} 38. Bg2 {[%clk 0:01:26]}  Kf6 {[%clk 0:01:26]} 39. Bxe4 {[%clk 0:01:26]}  g5 {[%clk 0:01:27]} 40. Kd3 {[%clk 0:01:17]}  Ke5 {[%clk 0:01:22]} 41. Bg6 {[%clk 0:01:12]}  h4 {[%clk 0:01:20]} 42. e4 {[%clk 0:00:39]}  g4 {[%clk 0:01:16]} 43. Bf5 {[%clk 0:00:37]}  g3 {[%clk 0:01:14]} 44. Bh3 {[%clk 0:00:35]}  Kf4 {[%clk 0:01:12]} 45. d6 {[%clk 0:00:23]}  Bb6 {[%clk 0:00:46]} 46. Bg2 {[%clk 0:00:20]}  Kg4 {[%clk 0:00:38]} 47. e5 {[%clk 0:00:19]}  h3 {[%clk 0:00:38]} 48. Bxh3+ {[%clk 0:00:19]}  Kxh3 {[%clk 0:00:38]} 49. e6 {[%clk 0:00:19]}  g2 {[%clk 0:00:39]} 50. e7 {[%clk 0:00:19]}  g1=Q {[%clk 0:00:39]} 51. d8=Q {[%clk 0:00:18]}  Qd1+ {[%clk 0:00:32]} 52. Kc4 {[%clk 0:00:16]}  Qd4+ {[%clk 0:00:32]} 53. Kb5 {[%clk 0:00:15]}  Qc5+ {[%clk 0:00:32]} 54. Ka6 {[%clk 0:00:14]}  Qa5+ {[%clk 0:00:29]} 55. Kb7 {[%clk 0:00:15]}  Bxd8 {[%clk 0:00:29]} 56. e8=Q {[%clk 0:00:15]}  Bg5 {[%clk 0:00:26]} 57. d7 {[%clk 0:00:10]}  Qb5+ {[%clk 0:00:25]} 58. Kc8 {[%clk 0:00:07]}  Qc6+ {[%clk 0:00:21]} 59. Kb8 {[%clk 0:00:07]}  Bf4+ {[%clk 0:00:21]} 60. Ka7 {[%clk 0:00:06]}  Qc7+ {[%clk 0:00:19]} 61. Ka6 {[%clk 0:00:03]}  Qc6+ {[%clk 0:00:18]} 62. Ka7 {[%clk 0:00:03]}  Qa4+ {[%clk 0:00:13]} 63. Kb7 {[%clk 0:00:02]}  Qb5+ {[%clk 0:00:13]} 0-1


[Site "https://www.chess.com"]

[Event "Titled Tuesday Blitz December 06 Late 2022"]
[White "Radovanovic, Dusan"]
[Black "Papayan, Oleg"]
[WhiteFideId "926868"]
[BlackFideId "4193911"]
[WhiteElo "2337"]
[BlackElo "2153"]
[Result "0-1"]
[Round "10"]
[TimeControl "180+1"]
[Date "2022.12.07"]
[WhiteClock "0:00:05"]
[BlackClock "0:00:10"]

1. e4 {[%clk 0:03:00]}  e5 {[%clk 0:02:59]} 2. Nf3 {[%clk 0:03:00]}  Nc6 {[%clk 0:02:56]} 3. Nc3 {[%clk 0:03:00]}  Nf6 {[%clk 0:02:53]} 4. Bb5 {[%clk 0:03:01]}  Nd4 {[%clk 0:02:53]} 5. Nxe5 {[%clk 0:03:00]}  Qe7 {[%clk 0:02:49]} 6. f4 {[%clk 0:02:56]}  Nxb5 {[%clk 0:02:44]} 7. Nxb5 {[%clk 0:02:57]}  d6 {[%clk 0:02:44]} 8. Nf3 {[%clk 0:02:57]}  Qxe4+ {[%clk 0:02:41]} 9. Kf2 {[%clk 0:02:58]}  Ng4+ {[%clk 0:02:34]} 10. Kg3 {[%clk 0:02:57]}  Qg6 {[%clk 0:02:34]} 11. Nh4 {[%clk 0:02:54]}  Qh5 {[%clk 0:02:34]} 12. h3 {[%clk 0:02:50]}  Qxb5 {[%clk 0:01:52]} 13. hxg4 {[%clk 0:02:48]}  h5 {[%clk 0:01:30]} 14. g5 {[%clk 0:02:46]}  Bg4 {[%clk 0:01:25]} 15. Qe1+ {[%clk 0:02:41]}  Kd7 {[%clk 0:01:26]} 16. d4 {[%clk 0:02:33]}  Re8 {[%clk 0:01:23]} 17. Be3 {[%clk 0:01:54]}  Qxb2 {[%clk 0:01:17]} 18. Qf2 {[%clk 0:01:52]}  d5 {[%clk 0:01:02]} 19. Rhe1 {[%clk 0:01:41]}  Bb4 {[%clk 0:00:58]} 20. Reb1 {[%clk 0:00:45]}  Qc3 {[%clk 0:00:58]} 21. Rb3 {[%clk 0:00:39]}  Qxa1 {[%clk 0:00:49]} 22. Rxb4 {[%clk 0:00:39]}  Qc3 {[%clk 0:00:36]} 23. Rb3 {[%clk 0:00:39]}  Rxe3+ {[%clk 0:00:37]} 24. Qxe3 {[%clk 0:00:38]}  Qxc2 {[%clk 0:00:26]} 25. Nf3 {[%clk 0:00:22]}  Bxf3 {[%clk 0:00:20]} 26. Qxf3 {[%clk 0:00:22]}  Qc6 {[%clk 0:00:10]} 27. Rc3 {[%clk 0:00:20]}  Qd6 {[%clk 0:00:07]} 28. Rc5 {[%clk 0:00:20]}  c6 {[%clk 0:00:07]} 29. Qb3 {[%clk 0:00:21]}  b6 {[%clk 0:00:07]} 30. Rc3 {[%clk 0:00:18]}  h4+ {[%clk 0:00:08]} 31. Kf3 {[%clk 0:00:17]}  h3 {[%clk 0:00:07]} 32. gxh3 {[%clk 0:00:15]}  Rxh3+ {[%clk 0:00:08]} 33. Kg4 {[%clk 0:00:15]}  Qe6+ {[%clk 0:00:05]} 34. f5 {[%clk 0:00:12]}  Rxc3 {[%clk 0:00:05]} 35. Qxc3 {[%clk 0:00:11]}  Qe4+ {[%clk 0:00:05]} 36. Kg3 {[%clk 0:00:11]}  Qxf5 {[%clk 0:00:06]} 37. Qe3 {[%clk 0:00:11]}  Qe4 {[%clk 0:00:05]} 38. Qd2 {[%clk 0:00:11]}  f5 {[%clk 0:00:04]} 39. gxf6 {[%clk 0:00:10]}  gxf6 {[%clk 0:00:05]} 40. Qh6 {[%clk 0:00:10]}  Qxd4 {[%clk 0:00:04]} 41. Qg7+ {[%clk 0:00:10]}  Kd6 {[%clk 0:00:05]} 42. Qf8+ {[%clk 0:00:10]}  Ke5 {[%clk 0:00:05]} 43. Qe7+ {[%clk 0:00:10]}  Kf5 {[%clk 0:00:06]} 44. Qh7+ {[%clk 0:00:11]}  Ke6 {[%clk 0:00:05]} 45. Qg8+ {[%clk 0:00:09]}  Ke7 {[%clk 0:00:06]} 46. Qg7+ {[%clk 0:00:10]}  Kd8 {[%clk 0:00:06]} 47. Qf8+ {[%clk 0:00:10]}  Kc7 {[%clk 0:00:07]} 48. Qe7+ {[%clk 0:00:10]}  Kb8 {[%clk 0:00:07]} 49. Qd8+ {[%clk 0:00:10]}  Kb7 {[%clk 0:00:08]} 50. Qd7+ {[%clk 0:00:11]}  Ka6 {[%clk 0:00:08]} 51. Qc8+ {[%clk 0:00:12]}  Kb5 {[%clk 0:00:08]} 52. Qb7 {[%clk 0:00:12]}  Qe5+ {[%clk 0:00:09]} 53. Kf3 {[%clk 0:00:12]}  c5 {[%clk 0:00:09]} 54. Qxa7 {[%clk 0:00:11]}  c4 {[%clk 0:00:09]} 55. Qd7+ {[%clk 0:00:11]}  Kb4 {[%clk 0:00:09]} 56. Qc6 {[%clk 0:00:11]}  b5 {[%clk 0:00:09]} 57. Qb6 {[%clk 0:00:08]}  d4 {[%clk 0:00:09]} 58. a4 {[%clk 0:00:07]}  Kxa4 {[%clk 0:00:09]} 59. Qa6+ {[%clk 0:00:07]}  Kb4 {[%clk 0:00:09]} 60. Qa1 {[%clk 0:00:07]}  d3 {[%clk 0:00:09]} 61. Qb1+ {[%clk 0:00:06]}  Kc5 {[%clk 0:00:09]} 62. Qg1+ {[%clk 0:00:06]}  Qd4 {[%clk 0:00:10]} 63. Qg8 {[%clk 0:00:05]}  Qd5+ {[%clk 0:00:10]} 0-1


[Site "https://www.chess.com"]

[Event "Titled Tuesday Blitz December 06 Late 2022"]
[White "Rodriguez Santiago, Jaime"]
[Black "Dzierzak, Radoslaw"]
[WhiteFideId "3100898"]
[BlackFideId "1161407"]
[WhiteElo "2025"]
[BlackElo "2111"]
[Result "1-0"]
[Round "10"]
[TimeControl "180+1"]
[Date "2022.12.07"]
[WhiteClock "0:01:26"]
[BlackClock "0:00:40"]

1. c4 {[%clk 0:03:00]}  Nf6 {[%clk 0:02:49]} 2. Nc3 {[%clk 0:02:59]}  e6 {[%clk 0:02:48]} 3. e4 {[%clk 0:02:57]}  e5 {[%clk 0:02:49]} 4. g3 {[%clk 0:02:55]}  Nc6 {[%clk 0:02:48]} 5. Nge2 {[%clk 0:02:55]}  Bc5 {[%clk 0:02:48]} 6. Bg2 {[%clk 0:02:55]}  O-O {[%clk 0:02:48]} 7. O-O {[%clk 0:02:55]}  a6 {[%clk 0:02:46]} 8. d3 {[%clk 0:02:55]}  d6 {[%clk 0:02:46]} 9. h3 {[%clk 0:02:54]}  Be6 {[%clk 0:02:43]} 10. Kh2 {[%clk 0:02:53]}  Nd7 {[%clk 0:02:43]} 11. f4 {[%clk 0:02:52]}  f5 {[%clk 0:02:42]} 12. exf5 {[%clk 0:02:51]}  Bxf5 {[%clk 0:02:42]} 13. g4 {[%clk 0:02:51]}  Be6 {[%clk 0:02:40]} 14. f5 {[%clk 0:02:51]}  Bf7 {[%clk 0:02:40]} 15. Ng3 {[%clk 0:02:41]}  Nb6 {[%clk 0:02:40]} 16. Nce4 {[%clk 0:02:40]}  Bd4 {[%clk 0:02:37]} 17. Bg5 {[%clk 0:02:38]}  Qd7 {[%clk 0:02:35]} 18. f6 {[%clk 0:02:37]}  g6 {[%clk 0:02:34]} 19. Rb1 {[%clk 0:02:34]}  d5 {[%clk 0:02:33]} 20. cxd5 {[%clk 0:02:31]}  Nxd5 {[%clk 0:02:34]} 21. Qe2 {[%clk 0:02:26]}  Rfe8 {[%clk 0:02:33]} 22. Bh6 {[%clk 0:02:13]}  Nf4 {[%clk 0:02:33]} 23. Qf3 {[%clk 0:02:09]}  Bb6 {[%clk 0:02:22]} 24. Rbd1 {[%clk 0:02:07]}  Rad8 {[%clk 0:02:21]} 25. Bxf4 {[%clk 0:02:02]}  exf4 {[%clk 0:02:20]} 26. Ne2 {[%clk 0:02:01]}  Ne5 {[%clk 0:02:15]} 27. Qxf4 {[%clk 0:01:56]}  Kh8 {[%clk 0:01:21]} 28. Qh6 {[%clk 0:01:48]}  Rg8 {[%clk 0:01:20]} 29. Ng5 {[%clk 0:01:44]}  Bxa2 {[%clk 0:00:42]} 30. f7 {[%clk 0:01:37]}  Rg7 {[%clk 0:00:42]} 31. f8=Q+ {[%clk 0:01:31]}  Rxf8 {[%clk 0:00:41]} 32. Rxf8+ {[%clk 0:01:31]}  Rg8 {[%clk 0:00:42]} 33. Rf7 {[%clk 0:01:26]}  Bxf7 {[%clk 0:00:40]} 34. Qxh7# {[%clk 0:01:26]} 1-0


[Site "https://www.chess.com"]